bitfinex/quotes_SOLUSD_20250806
["timestamp","ask_amount","ask_price","bid_price","bid_amount"]
[1754443200201,16.13004961,162.36,162.35,0.1]
[1754443200393,59.97004961,162.36,162.35,0.1]
[1754443200804,85.97004961,162.36,162.35,0.1]
[1754443201324,149.8,162.37,162.35,0.1]
[1754443201487,9.11873554,162.36,162.35,0.1]
[1754443202007,9.82873554,162.36,162.35,0.1]
[1754443202194,53.81089711,162.36,162.35,0.1]
[1754443202586,9.97089711,162.36,162.35,0.1]
[1754443202786,53.83089711,162.36,162.35,0.1]
[1754443203615,59.99004961,162.36,162.35,0.1]
[1754443205300,69.10878515,162.36,162.35,0.1]
[1754443206811,73.55396118,162.36,162.35,0.1]
[1754443207617,59.99004961,162.36,162.35,0.1]
[1754443209707,59.95004961,162.36,162.35,0.1]
[1754443210106,16.13004961,162.36,162.35,0.1]
[1754443210331,59.93004961,162.36,162.35,0.1]
[1754443210939,15.42004961,162.36,162.35,0.1]
[1754443211110,59.22004961,162.36,162.35,0.1]
[1754443211837,85.07788804,162.36,162.35,0.1]
[1754443212241,59.07788804,162.36,162.35,0.1]
[1754443212418,59.74788804,162.36,162.35,0.1]
[1754443212613,85.74788804,162.36,162.35,0.1]
[1754443212827,84.11500072,162.36,162.35,0.1]
[1754443213338,84.11500072,162.36,162.35,1e-08]
[1754443213914,16.09004961,162.36,162.35,1e-08]
[1754443214114,59.20004961,162.36,162.35,1e-08]
[1754443215144,68.98878515,162.36,162.35,1e-08]
[1754443215309,73.43902045,162.36,162.35,1e-08]
[1754443216254,26.0,162.34,162.28,0.65]
[1754443216462,26.0,162.34,162.27,0.78436321]
[1754443216463,9.11873554,162.29,162.27,0.78436321]
[1754443216622,69.8,162.3,162.27,0.78436321]
[1754443216810,26.14216157,162.33,162.28,0.65]
[1754443217011,26.0,162.3,162.29,0.65]
[1754443217320,43.84,162.33,162.29,0.65]
[1754443217625,5.70027049,162.35,162.3,5.70027049]
[1754443217832,5.70027049,162.34,162.29,5.70027049]
[1754443218143,5.70027049,162.35,162.31,0.65]
[1754443218321,5.70027049,162.32,162.27,6.4846337]
[1754443218533,5.70027049,162.31,162.28,0.65]
[1754443218727,5.70027049,162.3,162.28,0.65]
[1754443218931,5.70027049,162.3,162.27,0.78436321]
[1754443219242,5.70027049,162.3,162.27,1.43436321]
[1754443219243,5.70027049,162.29,162.27,1.43436321]
[1754443219432,11.86219957,162.29,162.27,0.78436321]
[1754443219746,5.70027049,162.28,162.27,0.78436321]
[1754443220736,9.12132235,162.29,162.27,1.43436321]
[1754443220956,26.0,162.32,162.28,0.65]
[1754443221158,26.0,162.32,162.29,6.81180537]
[1754443221461,41.28200637,162.32,162.3,0.65]
[1754443221763,9.12132235,162.33,162.31,0.65]
[1754443222148,26.0,162.34,162.29,0.65]
[1754443222149,9.12132235,162.32,162.29,0.65]
[1754443222669,9.12132235,162.3,162.27,1.43436321]
[1754443223027,9.12132235,162.28,162.27,0.78436321]
[1754443224372,9.12132235,162.3,162.27,1.43436321]
[1754443224532,4.47413107,162.29,162.28,0.65]
[1754443224732,8.49867969,162.3,162.28,0.65]
[1754443225065,4.47413107,162.29,162.28,0.65]
[1754443225632,4.47413107,162.29,162.27,0.78436321]
[1754443225946,13.59545342,162.28,162.27,0.78436321]
[1754443226157,17.62000204,162.28,162.27,0.78436321]
[1754443226869,8.49867969,162.28,162.27,0.78436321]
[1754443227376,8.51194831,162.28,162.27,0.78436321]
[1754443227675,17.63327066,162.28,162.27,0.78436321]
[1754443228270,8.51194831,162.28,162.27,0.78436321]
[1754443229372,8.51194831,162.28,162.27,1.43436321]
[1754443230065,8.51194831,162.28,162.27,0.78436321]
[1754443230592,29.46636957,162.28,162.27,0.78436321]
[1754443230786,24.46545946,162.28,162.27,0.78436321]
[1754443230960,18.30327066,162.28,162.27,0.78436321]
[1754443231154,24.46545946,162.28,162.27,0.78436321]
[1754443231355,29.46636957,162.28,162.27,0.78436321]
[1754443231761,8.51194831,162.28,162.27,0.78436321]
[1754443233572,13.51285842,162.28,162.27,0.74436321]
[1754443234184,8.51194831,162.28,162.27,0.74436321]
[1754443234488,13.51285842,162.28,162.27,0.74436321]
[1754443234780,8.51194831,162.28,162.27,0.74436321]
[1754443234954,29.59062364,162.28,162.23,15.28528129]
[1754443235154,8.51194831,162.27,162.23,15.94528129]
[1754443235383,18.34327066,162.26,162.22,43.84]
[1754443235675,17.63327066,162.25,162.22,43.84]
[1754443235898,9.12132235,162.23,162.18,0.76]
[1754443236049,8.51194831,162.22,162.18,15.38722061]
[1754443236389,8.51194831,162.21,162.2,9.12132235]
[1754443236591,5.08516418,162.27,162.2,24.88753792]
[1754443236894,8.59503097,162.26,162.24,9.12132235]
[1754443237182,8.59503097,162.25,162.23,9.12132235]
[1754443237350,8.59503097,162.24,162.23,9.12132235]
[1754443237560,8.59503097,162.24,162.21,9.78132235]
[1754443237781,8.59503097,162.23,162.21,0.66]
[1754443237999,14.20648653,162.29,162.22,9.12132235]
[1754443238191,14.20648653,162.29,162.24,9.12132235]
[1754443238192,8.60050411,162.28,162.24,9.12132235]
[1754443238505,8.60050411,162.27,162.25,0.66]
[1754443238679,8.60050411,162.26,162.25,0.66]
[1754443239300,8.60050411,162.26,162.25,24.88753792]
[1754443239683,8.60050411,162.26,162.25,9.78132235]
[1754443239882,8.60353391,162.26,162.25,9.78132235]
[1754443240300,8.60353391,162.26,162.25,9.12132235]
[1754443240498,8.60353391,162.26,162.23,43.84]
[1754443240691,8.60353391,162.25,162.23,43.84]
[1754443241001,8.60353391,162.24,162.23,59.78541037]
[1754443241203,4.07713521,162.24,162.23,59.78541037]
[1754443241381,8.60611078,162.24,162.23,43.84]
[1754443241880,8.60597939,162.24,162.23,43.84]
[1754443242077,8.60597939,162.24,162.2,15.2863248]
[1754443242388,4.52914859,162.23,162.2,15.9463248]
[1754443242592,4.52914859,162.22,162.2,15.9463248]
[1754443242789,4.07559625,162.24,162.21,0.06]
[1754443242993,4.52803945,162.23,162.21,9.18132235]
[1754443243194,4.07557461,162.24,162.21,9.18132235]
[1754443243391,4.5274798,162.23,162.21,9.18132235]
[1754443243592,4.5274798,162.22,162.21,9.18132235]
[1754443243790,4.5274798,162.22,162.21,9.84132235]
[1754443244299,4.07506248,162.24,162.21,16.00583883]
[1754443244488,4.5267001,162.23,162.21,16.00583883]
[1754443244689,9.83132235,162.26,162.21,16.00583883]
[1754443244883,8.60162136,162.25,162.23,9.12132235]
[1754443245107,4.52694156,162.24,162.21,6.22451648]
[1754443245289,4.0746798,162.28,162.23,9.12132235]
[1754443245496,8.60221914,162.27,162.23,52.98132235]
[1754443245696,4.52753934,162.26,162.23,53.64132235]
[1754443245893,4.52753934,162.25,162.23,53.64132235]
[1754443246087,4.0746798,162.27,162.23,53.64132235]
[1754443246282,4.52766855,162.26,162.24,6.16370808]
[1754443246484,4.52766855,162.25,162.23,43.86]
[1754443246700,4.52766855,162.24,162.23,43.86]
[1754443247407,18.4336707,162.24,162.21,0.06]
[1754443247583,5.23766855,162.23,162.21,0.06]
[1754443247791,4.52766855,162.22,162.21,0.06]
[1754443249112,20.5234589,162.22,162.21,0.06]
[1754443249288,50.5950484,162.22,162.21,0.06]
[1754443249492,50.73720997,162.22,162.21,0.06]
[1754443250010,50.73720997,162.22,162.18,0.1]
[1754443250191,9.12132235,162.19,162.18,0.1]
[1754443250395,13.6489909,162.19,162.18,0.1]
[1754443250631,18.4305804,162.19,162.18,0.1]
[1754443251093,13.6489909,162.19,162.18,0.1]
[1754443251287,13.6489909,162.19,162.18,16.04731075]
[1754443251288,4.52766855,162.19,162.18,16.04731075]
[1754443251698,13.18593128,162.22,162.18,6.9259884]
[1754443251911,4.5163799,162.21,162.18,0.1]
[1754443252111,4.5163799,162.2,162.18,0.1]
[1754443252417,0.71,162.21,162.18,6.2659798]
[1754443252599,4.51504881,162.2,162.18,6.2659798]
[1754443252803,9.12132235,162.25,162.19,9.78132235]
[1754443253000,4.51586026,162.24,162.2,9.12132235]
[1754443253208,4.51586026,162.23,162.21,9.12132235]
[1754443253515,9.12132235,162.24,162.18,50.1259798]
[1754443253698,14.34698427,162.23,162.18,59.24730215]
[1754443253899,4.51566192,162.22,162.19,9.12132235]
[1754443254135,9.83132235,162.23,162.19,9.78132235]
[1754443254421,4.51548029,162.22,162.19,9.78132235]
[1754443254624,9.12132235,162.24,162.2,36.16518508]
[1754443254825,4.51549258,162.23,162.2,30.0]
[1754443255004,4.51549258,162.22,162.2,30.0]
[1754443255202,9.83132235,162.24,162.2,30.0]
[1754443255525,9.83132235,162.24,162.2,45.28646987]
[1754443255526,4.51548417,162.23,162.2,45.28646987]
[1754443255727,13.18503939,162.25,162.21,0.66]
[1754443255911,4.51562228,162.24,162.2,45.28646987]
[1754443256107,4.51562228,162.23,162.2,45.28646987]
[1754443256435,4.51562228,162.22,162.2,45.28646987]
[1754443256594,4.77371704,162.24,162.2,15.28646987]
[1754443256794,4.51582157,162.23,162.2,15.28646987]
[1754443257106,4.51582157,162.22,162.2,15.28646987]
[1754443257307,4.77371704,162.24,162.2,15.28646987]
[1754443257526,4.51600679,162.23,162.2,15.28646987]
[1754443257711,4.51600679,162.22,162.2,15.28646987]
[1754443257910,4.77371704,162.24,162.2,15.28646987]
[1754443258093,4.5163172,162.23,162.2,6.16514752]
[1754443258297,4.06371704,162.24,162.18,0.1]
[1754443258298,0.14216157,162.2,162.18,0.1]
[1754443258499,44.41135659,162.19,162.11,4.6875]
[1754443258717,9.12132235,162.13,162.11,4.6875]
[1754443258909,9.12132235,162.14,162.11,4.6875]
[1754443259104,4.51328491,162.13,162.11,4.6875]
[1754443259528,4.51328491,162.13,162.11,10.85607928]
[1754443259711,4.51328491,162.13,162.11,4.6875]
[1754443259712,13.63460726,162.13,162.11,4.6875]
[1754443260024,0.71,162.14,162.11,4.6875]
[1754443260025,9.83132235,162.14,162.11,4.6875]
[1754443260237,9.12132235,162.12,162.11,4.6875]
[1754443260541,4.50840902,162.12,162.11,4.6875]
[1754443260710,9.12132235,162.14,162.11,4.6875]
[1754443261042,9.12132235,162.12,162.11,4.6875]
[1754443261247,9.12132235,162.12,162.1,0.1]
[1754443261248,4.65081317,162.12,162.1,0.1]
[1754443261406,39.62997395,162.11,162.1,0.1]
[1754443262521,45.79862486,162.11,162.1,0.1]
[1754443263003,41.28997326,162.11,162.1,0.1]
[1754443263346,45.78194454,162.11,162.1,0.1]
[1754443263529,49.96088163,162.11,162.1,0.1]
[1754443264109,49.81872006,162.11,162.1,0.1]
[1754443264308,45.78194454,162.11,162.1,0.1]
[1754443264521,49.81352861,162.11,162.1,0.1]
[1754443265337,45.78194454,162.11,162.1,0.1]
[1754443265739,13.61329363,162.11,162.1,0.1]
[1754443266038,9.12132235,162.12,162.1,0.79]
[1754443266341,9.15132235,162.13,162.1,0.79]
[1754443266645,9.15132235,162.13,162.11,0.69]
[1754443267345,0.03,162.13,162.1,6.26895845]
[1754443267507,0.03,162.13,162.12,0.69]
[1754443267722,0.03,162.13,162.12,9.81132235]
[1754443268364,0.03,162.13,162.12,15.97959276]
[1754443268663,0.03,162.13,162.12,0.69]
[1754443269761,0.03,162.13,162.12,6.85827041]
[1754443269932,0.03,162.13,162.12,15.97959276]
[1754443271744,0.03,162.13,162.1,0.1]
[1754443271942,9.15132235,162.13,162.1,0.79]
[1754443272348,9.15132235,162.13,162.11,0.69]
[1754443272545,0.03,162.13,162.12,0.69]
[1754443273649,9.15132235,162.13,162.1,0.1]
[1754443273876,9.12132235,162.12,162.1,0.1]
[1754443274580,9.12132235,162.11,162.1,0.1]
[1754443275070,9.12132235,162.12,162.1,0.1]
[1754443275244,9.12132235,162.11,162.1,0.1]
[1754443276691,6.19789243,162.13,162.1,0.1]
[1754443276989,9.12132235,162.11,162.1,0.79]
[1754443277145,0.03,162.13,162.1,6.95898885]
[1754443277346,0.03,162.13,162.1,16.0803112]
[1754443277545,0.03,162.13,162.11,0.69]
[1754443278279,0.03,162.13,162.12,0.69]
[1754443280261,0.03,162.13,162.1,0.1]
[1754443280558,9.15132235,162.13,162.1,0.1]
[1754443280760,9.12132235,162.12,162.1,0.1]
[1754443280962,9.12132235,162.11,162.1,0.1]
[1754443281991,13.59168194,162.11,162.1,0.1]
[1754443282156,4.47035959,162.11,162.1,0.1]
[1754443282353,8.49435821,162.11,162.1,0.1]
[1754443282576,23.78433147,162.11,162.1,0.1]
[1754443282804,23.78430158,162.11,162.1,0.1]
[1754443283013,67.98646315,162.11,162.1,0.1]
[1754443283589,23.78430158,162.11,162.1,0.1]
[1754443284197,14.66297923,162.11,162.1,0.1]
[1754443284418,23.78430158,162.11,162.1,0.1]
[1754443284625,17.61565067,162.11,162.1,0.1]
[1754443284796,23.78430158,162.11,162.1,0.1]
[1754443285214,8.49432832,162.11,162.1,0.1]
[1754443285391,13.14532097,162.11,162.1,0.1]
[1754443285599,0.03,162.13,162.1,6.95900151]
[1754443285932,0.03,162.13,162.11,0.69]
[1754443286132,0.03,162.13,162.12,9.12132235]
[1754443286286,0.03,162.15,162.14,9.12132235]
[1754443286620,0.03,162.15,162.14,15.9788319]
[1754443286988,4.02726879,162.2,162.14,15.9788319]
[1754443287222,4.47793035,162.19,162.15,9.81132235]
[1754443287431,4.02726879,162.2,162.16,9.81132235]
[1754443287606,4.02726879,162.21,162.17,9.81132235]
[1754443287805,13.1538213,162.22,162.18,0.69]
[1754443288138,9.12132235,162.19,162.15,0.69]
[1754443288497,9.12132235,162.18,162.13,44.79]
[1754443288723,4.03247269,162.18,162.13,44.79]
[1754443289044,9.12132235,162.18,162.14,0.69]
[1754443289198,13.15379504,162.18,162.15,0.69]
[1754443289613,9.12132235,162.18,162.16,0.69]
[1754443289814,13.60154662,162.17,162.14,0.69]
[1754443290009,13.60127528,162.16,162.13,44.1]
[1754443290211,9.12132235,162.16,162.13,44.1]
[1754443290424,9.12132235,162.17,162.14,0.69]
[1754443290634,13.15681462,162.17,162.14,0.69]
[1754443290842,9.12132235,162.17,162.14,0.69]
[1754443291046,9.12132235,162.18,162.15,0.69]
[1754443291342,4.48463734,162.17,162.15,0.69]
[1754443291515,17.64188042,162.17,162.12,9.81132235]
[1754443291713,4.48463734,162.16,162.13,0.69]
[1754443291923,9.12132235,162.17,162.14,0.69]
[1754443292141,4.48587392,162.16,162.14,0.69]
[1754443292338,9.12132235,162.17,162.14,0.69]
[1754443292515,4.48637799,162.16,162.14,0.69]
[1754443293522,4.48637799,162.16,162.15,0.69]
[1754443294063,8.52671333,162.17,162.13,9.78132235]
[1754443294223,8.52671333,162.17,162.13,9.12132235]
[1754443294224,4.48637799,162.16,162.13,9.12132235]
[1754443294425,4.04033534,162.17,162.15,9.12132235]
[1754443294644,4.04033534,162.19,162.16,9.78132235]
[1754443294817,8.52857431,162.18,162.16,9.12132235]
[1754443295020,4.04033534,162.2,162.17,0.66]
[1754443295256,8.5285714,162.19,162.18,0.66]
[1754443295460,8.5285714,162.19,162.15,6.16696413]
[1754443295461,4.04033534,162.21,162.15,50.24696413]
[1754443295663,9.12132235,162.23,162.15,50.24696413]
[1754443295664,4.48907747,162.2,162.18,9.12132235]
[1754443295819,4.04033534,162.21,162.15,50.24696413]
[1754443296145,4.48907601,162.2,162.18,0.66]
[1754443296357,4.04033534,162.21,162.18,0.66]
[1754443296541,4.04033534,162.21,162.19,0.66]
[1754443296542,4.48902461,162.2,162.19,0.66]
[1754443296742,4.48902461,162.2,162.18,15.28720687]
[1754443296929,4.04033534,162.22,162.17,9.12132235]
[1754443296930,4.04033534,162.21,162.17,9.12132235]
[1754443297132,8.52909667,162.2,162.17,9.12132235]
[1754443297444,4.48876133,162.19,162.15,60.02841892]
[1754443297646,4.04033534,162.2,162.16,0.66]
[1754443297865,4.48871214,162.19,162.17,0.66]
[1754443298234,4.04033534,162.2,162.17,0.66]
[1754443298455,4.04033534,162.2,162.18,0.66]
[1754443298456,4.49012042,162.19,162.18,0.66]
[1754443298656,4.04033534,162.21,162.19,0.66]
[1754443298855,4.4887866,162.2,162.19,0.66]
[1754443299060,8.52912194,162.21,162.17,6.16624769]
[1754443299253,4.4887866,162.2,162.19,0.66]
[1754443299567,4.4887866,162.2,162.18,9.12132235]
[1754443299765,4.04033534,162.21,162.18,9.12132235]
[1754443299939,26.0,162.24,162.19,9.12132235]
[1754443299940,4.48988281,162.2,162.19,9.12132235]
[1754443300262,4.04033534,162.23,162.19,9.78132235]
[1754443300436,8.53131101,162.22,162.2,9.78132235]
[1754443300639,4.49097567,162.21,162.2,15.28655046]
[1754443300865,4.04033534,162.23,162.2,9.12132235]
[1754443301072,4.04033534,162.22,162.19,9.12132235]
[1754443301239,4.49216139,162.21,162.19,9.12132235]
[1754443301445,4.04033534,162.22,162.19,9.78132235]
[1754443301641,4.49100403,162.21,162.19,0.66]
[1754443301845,4.4898391,162.2,162.17,9.78132235]
[1754443302063,4.04033534,162.21,162.17,9.78132235]
[1754443302371,4.49073993,162.2,162.18,9.78132235]
[1754443302668,4.04033534,162.22,162.19,0.66]
[1754443302842,4.4912372,162.21,162.19,0.66]
[1754443303042,4.49102846,162.2,162.19,0.66]
[1754443303262,4.49102846,162.2,162.18,15.28722253]
[1754443303438,4.04355402,162.22,162.2,15.10621557]
[1754443303634,4.04355402,162.25,162.21,53.12132235]
[1754443303942,4.49265622,162.24,162.22,0.66]
[1754443304167,4.04355402,162.26,162.22,0.66]
[1754443304466,4.49053985,162.25,162.23,0.66]
[1754443304647,4.49053985,162.24,162.23,0.66]
[1754443304972,0.2,162.3,162.23,0.66]
[1754443304973,0.2,162.3,162.23,15.94541037]
[1754443305145,8.53429511,162.29,162.27,9.12132235]
[1754443305471,4.49129713,162.28,162.26,9.12132235]
[1754443305674,4.24299798,162.3,162.26,9.12132235]
[1754443305847,4.48861234,162.29,162.26,9.78132235]
[1754443306048,4.48861234,162.29,162.23,0.66]
[1754443306049,4.48861234,162.28,162.23,0.66]
[1754443306263,13.60993469,162.27,162.23,0.66]
[1754443306468,8.53161032,162.26,162.23,0.66]
[1754443306670,4.48861234,162.25,162.23,0.66]
[1754443307173,9.12132235,162.28,162.24,0.66]
[1754443307464,4.48622408,162.27,162.25,0.66]
[1754443307680,13.60754643,162.27,162.23,9.12132235]
[1754443307877,4.48622408,162.26,162.23,9.12132235]
[1754443308052,4.48622408,162.26,162.23,9.78132235]
[1754443308253,4.48622408,162.26,162.24,0.66]
[1754443308476,9.12132235,162.27,162.24,0.66]
[1754443308660,4.48568848,162.26,162.24,0.66]
[1754443309178,15.48286325,162.3,162.25,9.78132235]
[1754443309380,0.03,162.28,162.26,0.66]
[1754443309551,4.51683644,162.28,162.26,0.66]
[1754443309879,0.03,162.28,162.27,9.78132235]
[1754443310486,0.03,162.28,162.27,0.66]
[1754443310670,0.03,162.28,162.27,9.78132235]
[1754443311059,0.03,162.28,162.27,0.66]
[1754443312270,0.03,162.28,162.27,15.9438909]
[1754443312472,0.03,162.28,162.27,9.78132235]
[1754443312687,0.03,162.28,162.27,15.9438909]
[1754443312876,0.2,162.3,162.29,9.12132235]
[1754443313086,0.2,162.3,162.29,15.28313145]
[1754443313283,0.2,162.3,162.29,15.94313145]
[1754443313468,0.2,162.3,162.29,0.66]
[1754443313782,0.2,162.3,162.27,15.9437965]
[1754443313959,0.2,162.3,162.27,15.2837965]
[1754443314159,0.2,162.3,162.28,0.66]
[1754443314793,0.2,162.3,162.29,0.66]
[1754443316792,0.2,162.3,162.29,15.94313145]
[1754443318211,0.2,162.3,162.29,31.04934702]
[1754443319585,0.2,162.3,162.29,75.02934702]
[1754443319987,0.2,162.3,162.29,59.92313145]
[1754443320290,0.2,162.3,162.29,43.98]
[1754443321411,0.2,162.3,162.29,44.64]
[1754443321777,0.2,162.3,162.29,43.98]
[1754443322786,0.2,162.3,162.29,44.64]
[1754443323081,0.2,162.3,162.29,59.92313145]
[1754443323782,0.2,162.3,162.29,53.76132235]
[1754443324485,0.2,162.3,162.29,59.92313145]
[1754443326279,9.32132235,162.3,162.29,43.98]
[1754443326512,0.2,162.3,162.29,59.93313145]
[1754443326814,0.2,162.3,162.29,75.03934702]
[1754443326978,0.2,162.34,162.33,9.12132235]
[1754443327187,0.2,162.34,162.33,44.0]
[1754443327490,15.77123364,162.34,162.31,44.0]
[1754443327692,9.12132235,162.32,162.3,44.04]
[1754443328314,9.12132235,162.31,162.3,44.04]
[1754443328608,13.6005146,162.31,162.3,44.04]
[1754443328991,17.92047115,162.31,162.28,44.02]
[1754443329231,9.12132235,162.29,162.28,44.02]
[1754443329391,17.92407775,162.29,162.28,44.02]
[1754443329821,24.08589027,162.29,162.28,44.02]
[1754443330130,24.08589027,162.29,162.26,44.04]
[1754443330308,17.63808034,162.28,162.26,44.04]
[1754443330621,4.48267237,162.27,162.26,44.04]
[1754443331647,4.48267237,162.27,162.26,44.1]
[1754443331905,26.0,162.32,162.26,60.0542707]
[1754443332082,150.0,162.34,162.29,9.12132235]
[1754443332083,8.52799088,162.31,162.29,9.12132235]
[1754443332287,4.03955565,162.33,162.3,53.16132235]
[1754443332487,8.52853756,162.32,162.3,44.04]
[1754443332710,4.48898191,162.31,162.3,44.04]
[1754443333158,8.52853756,162.31,162.3,44.04]
[1754443333312,4.48898191,162.31,162.3,44.04]
[1754443333512,8.52853756,162.31,162.3,44.04]
[1754443333932,4.48898191,162.31,162.3,44.04]
[1754443334113,8.52853756,162.31,162.3,44.04]
[1754443334311,4.48898191,162.31,162.3,44.04]
[1754443334534,4.48898191,162.31,162.3,44.71]
[1754443335036,4.48898191,162.31,162.3,53.83132235]
[1754443335235,4.48898191,162.31,162.3,44.71]
[1754443335917,8.52853756,162.32,162.3,44.71]
[1754443336231,15.48128105,162.34,162.3,44.71]
[1754443336232,4.48898191,162.31,162.3,44.71]
[1754443336422,8.53267399,162.32,162.3,44.71]
[1754443336756,4.48898191,162.31,162.3,59.3227518]
[1754443336907,4.04423871,162.33,162.31,15.10621557]
[1754443337238,0.2,162.34,162.32,53.16132235]
[1754443337440,0.2,162.34,162.33,9.12132235]
[1754443337754,4.69440661,162.34,162.33,9.12132235]
[1754443338111,0.2,162.34,162.33,9.79132235]
[1754443338342,4.69579265,162.34,162.33,9.79132235]
[1754443338517,8.7421501,162.34,162.32,44.04]
[1754443338712,0.2,162.34,162.33,9.79132235]
[1754443338933,8.74135467,162.34,162.32,53.16132235]
[1754443339152,4.4952113,162.33,162.32,53.16132235]
[1754443339352,4.4952113,162.33,162.32,44.04]
[1754443339653,4.4952113,162.33,162.32,53.83132235]
[1754443340239,4.4952113,162.33,162.32,44.71]
[1754443340413,4.4952113,162.33,162.32,59.99199263]
[1754443340612,0.2,162.34,162.32,59.99199263]
[1754443340845,0.2,162.34,162.33,9.79132235]
[1754443341013,8.74682476,162.34,162.33,9.79132235]
[1754443341647,8.74682476,162.34,162.32,59.32195656]
[1754443341822,8.74682476,162.34,162.32,53.83132235]
[1754443341823,4.49859206,162.33,162.32,53.83132235]
[1754443342142,8.54721066,162.33,162.32,59.99199263]
[1754443342439,0.2,162.34,162.33,15.10621557]
[1754443342610,0.2,162.34,162.33,30.38782868]
[1754443342809,8.55016219,162.34,162.33,0.67]
[1754443343021,8.55016219,162.34,162.33,44.06]
[1754443343566,8.55016219,162.34,162.33,44.73]
[1754443343764,4.500071,162.34,162.33,44.73]
[1754443344140,0.03,162.35,162.33,53.85132235]
[1754443344337,0.03,162.35,162.34,9.79132235]
[1754443344538,4.53238545,162.35,162.34,0.67]
[1754443344734,4.53238545,162.35,162.34,15.95123364]
[1754443345165,4.53155151,162.35,162.34,15.95123364]
[1754443345346,4.53155151,162.35,162.34,9.79132235]
[1754443345551,4.53155151,162.35,162.34,15.95123364]
[1754443347156,0.03,162.35,162.34,15.95123364]
[1754443348159,0.03,162.35,162.34,31.05744921]
[1754443350136,0.03,162.35,162.34,31.19961078]
[1754443351663,4.05673483,162.39,162.34,46.59938902]
[1754443351853,4.05673483,162.42,162.38,9.12132235]
[1754443352179,4.50869307,162.41,162.39,53.75132235]
[1754443352466,13.17884527,162.44,162.39,53.75132235]
[1754443352626,8.56536214,162.43,162.39,53.75132235]
[1754443352945,8.56536214,162.42,162.4,6.15763546]
[1754443353157,9.61132235,162.44,162.41,43.96]
[1754443353353,8.56259405,162.43,162.41,53.75132235]
[1754443353532,8.56259405,162.42,162.41,43.96]
[1754443353862,4.50701025,162.42,162.41,53.08132235]
[1754443354235,4.50701025,162.42,162.41,53.77132235]
[1754443354545,4.50701025,162.42,162.41,53.08132235]
[1754443355132,4.50701025,162.42,162.41,59.23857867]
[1754443355445,9.12132235,162.46,162.41,59.92857867]
[1754443355759,8.55713036,162.45,162.41,59.92857867]
[1754443356068,8.55713036,162.44,162.43,9.12132235]
[1754443356239,4.50411315,162.44,162.43,53.73132235]
[1754443356639,8.55745492,162.44,162.43,53.73132235]
[1754443356965,4.50411315,162.44,162.43,53.04132235]
[1754443357452,4.50135003,162.44,162.43,59.88782053]
[1754443358062,4.50135003,162.44,162.43,59.19782053]
[1754443358268,8.55242978,162.46,162.43,59.19782053]
[1754443358570,8.55242978,162.45,162.43,59.19782053]
[1754443358774,4.49960274,162.44,162.43,50.07649818]
[1754443358970,4.05107975,162.46,162.43,59.19782053]
[1754443359165,0.2,162.47,162.45,9.12132235]
[1754443359499,0.2,162.47,162.46,53.00132235]
[1754443359907,0.2,162.47,162.46,53.69132235]
[1754443361305,0.2,162.47,162.46,59.84668366]
[1754443362364,0.2,162.47,162.46,74.95289923]
[1754443362771,0.2,162.47,162.46,75.71059693]
[1754443364718,1e-08,162.47,162.46,75.71059693]
[1754443365586,1e-08,162.49,162.48,41.10621557]
[1754443365798,1e-08,162.49,162.48,103.80432063]
[1754443365975,1e-08,162.49,162.48,104.49432063]
[1754443366170,4.7175,162.52,162.49,15.24837714]
[1754443366393,4.7175,162.52,162.5,45.14538461]
[1754443366702,4.7175,162.52,162.51,9.81132235]
[1754443367291,4.7175,162.52,162.51,15.96478982]
[1754443369179,4.7175,162.52,162.51,31.21316696]
[1754443369379,0.2,162.53,162.52,15.24837714]
[1754443369604,0.2,162.53,162.52,69.49500837]
[1754443369901,1e-08,162.57,162.52,69.49500837]
[1754443370112,1e-08,162.57,162.56,24.22753792]
[1754443370328,1e-08,162.57,162.56,58.94621557]
[1754443370476,1e-08,162.57,162.56,68.75753792]
[1754443371330,1e-08,162.57,162.56,74.90911272]
[1754443374795,1e-08,162.57,162.56,71.46370966]
[1754443378694,1e-08,162.57,162.56,72.22102871]
[1754443379089,1e-08,162.57,162.56,74.68279471]